[Event "*** SCC Grand Prix: Titled Tuesday Blitz"]
[Site "Chess.com"]
[Date "2020.08.04"]
[Round "1"]
[White "icychess54"]
[Black "Mikhail_Golubev"]
[Result "1/2-1/2"]
[WhiteElo "2277"]
[BlackElo "2597"]
[TimeControl "180+1"]
[EndTime "13:51:43 PDT"]
[Termination "Game drawn by repetition"]

1. c4 {[%clk 0:03:00.9]} 1... g6 {[%clk 0:02:56.8]} 2. Nf3 {[%clk 0:03:00.7]}
2... Bg7 {[%clk 0:02:56.9]} 3. e3 {[%clk 0:03:01.6]} 3... d6 {[%clk 0:02:56]} 4.
Be2 {[%clk 0:03:02]} 4... Nf6 {[%clk 0:02:55.6]} 5. O-O {[%clk 0:03:02.4]} 5...
O-O {[%clk 0:02:56.3]} 6. Nc3 {[%clk 0:03:02.9]} 6... e5 {[%clk 0:02:56]} 7. b4
{[%clk 0:03:02]} 7... e4 {[%clk 0:02:51.6]} 8. Ne1 {[%clk 0:03:01.1]} 8... a5
{[%clk 0:02:49.9]} 9. b5 {[%clk 0:02:58.8]} 9... Nbd7 {[%clk 0:02:49.8]} 10. Bb2
{[%clk 0:02:56.8]} 10... Nc5 {[%clk 0:02:48.9]} 11. d4 {[%clk 0:02:51.3]} 11...
exd3 {[%clk 0:02:47.6]} 12. Nxd3 {[%clk 0:02:50.8]} 12... Nfd7 {[%clk
0:02:42.9]} 13. Nxc5 {[%clk 0:02:36.9]} 13... Nxc5 {[%clk 0:02:42.3]} 14. Bf3
{[%clk 0:02:34.8]} 14... Be6 {[%clk 0:02:41.2]} 15. Qe2 {[%clk 0:02:29.8]} 15...
a4 {[%clk 0:02:41.2]} 16. Nd5 {[%clk 0:01:48.7]} 16... c6 {[%clk 0:01:59.9]} 17.
Bxg7 {[%clk 0:01:41.6]} 17... Kxg7 {[%clk 0:02:00]} 18. Nf4 {[%clk 0:01:28.2]}
18... Qf6 {[%clk 0:01:54.2]} 19. bxc6 {[%clk 0:01:17.6]} 19... bxc6 {[%clk
0:01:54.1]} 20. Bxc6 {[%clk 0:01:16.6]} 20... Rab8 {[%clk 0:01:54.2]} 21. Rab1
{[%clk 0:01:12.4]} 21... a3 {[%clk 0:01:54]} 22. Bb5 {[%clk 0:00:50.5]} 22...
Ne4 {[%clk 0:01:52.5]} 23. Qd3 {[%clk 0:00:46.8]} 23... Nc3 {[%clk 0:01:51.3]}
24. Rb3 {[%clk 0:00:44.2]} 24... Nxb5 {[%clk 0:01:45.2]} 25. Rxb5 {[%clk
0:00:43]} 25... Rxb5 {[%clk 0:01:44.7]} 26. cxb5 {[%clk 0:00:39.2]} 26... Qb2
{[%clk 0:01:31.2]} 27. Nxe6+ {[%clk 0:00:33.4]} 27... fxe6 {[%clk 0:01:31.3]}
28. Qxd6 {[%clk 0:00:34.1]} 28... Qxb5 {[%clk 0:01:30.7]} 29. Qe7+ {[%clk
0:00:32.1]} 29... Rf7 {[%clk 0:01:30]} 30. Qxa3 {[%clk 0:00:32.6]} 30... e5
{[%clk 0:01:28.9]} 31. Qc3 {[%clk 0:00:31.4]} 31... Qd5 {[%clk 0:01:27]} 32. a4
{[%clk 0:00:29.2]} 32... Rf5 {[%clk 0:01:25.4]} 33. g3 {[%clk 0:00:24]} 33... h5
{[%clk 0:01:24.3]} 34. a5 {[%clk 0:00:22.6]} 34... h4 {[%clk 0:01:23.8]} 35.
Qc7+ {[%clk 0:00:14.7]} 35... Kh6 {[%clk 0:01:23.1]} 36. Qc1 {[%clk 0:00:10]}
36... Rg5 {[%clk 0:01:12.3]} 37. e4 {[%clk 0:00:07.5]} 37... Qxe4 {[%clk
0:01:11.9]} 38. Qe3 {[%clk 0:00:07.2]} 38... Qc6 {[%clk 0:01:07.4]} 39. f4
{[%clk 0:00:03]} 39... exf4 {[%clk 0:01:06.1]} 40. Qxf4 {[%clk 0:00:03.9]} 40...
h3 {[%clk 0:01:06]} 41. Qh4+ {[%clk 0:00:03.9]} 41... Rh5 {[%clk 0:01:05.8]} 42.
Qf4+ {[%clk 0:00:04.4]} 42... Rg5 {[%clk 0:01:04.1]} 43. Qh4+ {[%clk 0:00:04.7]}
43... Rh5 {[%clk 0:01:04.2]} 44. Qf4+ {[%clk 0:00:05]} 44... Rg5 {[%clk
0:01:02.1]} 1/2-1/2

[Event "*** SCC Grand Prix: Titled Tuesday Blitz"]
[Site "Chess.com"]
[Date "2020.08.04"]
[Round "1"]
[White "PawnEatingZombie"]
[Black "davidkalashian"]
[Result "0-1"]
[WhiteElo "2232"]
[BlackElo "2567"]
[TimeControl "180+1"]
[EndTime "13:51:44 PDT"]
[Termination "davidkalashian won by resignation"]

1. d4 {[%clk 0:03:00.9]} 1... Nf6 {[%clk 0:02:59.5]} 2. c4 {[%clk 0:03:00.8]}
2... e6 {[%clk 0:02:59.3]} 3. Nc3 {[%clk 0:03:01.2]} 3... Bb4 {[%clk 0:02:58.8]}
4. Qc2 {[%clk 0:03:01.7]} 4... c5 {[%clk 0:02:58.1]} 5. dxc5 {[%clk 0:03:02.6]}
5... O-O {[%clk 0:02:57.6]} 6. a3 {[%clk 0:03:01.5]} 6... Bxc5 {[%clk
0:02:57.4]} 7. Nf3 {[%clk 0:03:02.1]} 7... b6 {[%clk 0:02:57.2]} 8. Bf4 {[%clk
0:03:01.9]} 8... Bb7 {[%clk 0:02:56.2]} 9. e3 {[%clk 0:03:02.2]} 9... Nh5 {[%clk
0:02:51.9]} 10. Bg5 {[%clk 0:02:41.4]} 10... Be7 {[%clk 0:02:50.8]} 11. Bxe7
{[%clk 0:02:39.9]} 11... Qxe7 {[%clk 0:02:51.7]} 12. Be2 {[%clk 0:02:39.9]}
12... d6 {[%clk 0:02:44.3]} 13. O-O {[%clk 0:02:38.7]} 13... Nf6 {[%clk
0:02:42.9]} 14. Rfd1 {[%clk 0:02:36.6]} 14... a6 {[%clk 0:02:43.1]} 15. Rac1
{[%clk 0:02:35.4]} 15... Qc7 {[%clk 0:02:43]} 16. b4 {[%clk 0:02:30.6]} 16...
Nbd7 {[%clk 0:02:42.4]} 17. Qb3 {[%clk 0:02:28.5]} 17... Rac8 {[%clk 0:02:41.6]}
18. Nd4 {[%clk 0:02:13.4]} 18... Rfd8 {[%clk 0:02:39.8]} 19. f3 {[%clk
0:02:12.6]} 19... Ne5 {[%clk 0:02:39.2]} 20. Na2 {[%clk 0:02:00]} 20... h6
{[%clk 0:02:31.8]} 21. Kh1 {[%clk 0:01:59.5]} 21... Qe7 {[%clk 0:02:27.2]} 22.
e4 {[%clk 0:01:52.6]} 22... Nh5 {[%clk 0:02:23.1]} 23. g3 {[%clk 0:01:43.1]}
23... Nf6 {[%clk 0:02:19.2]} 24. Kg1 {[%clk 0:01:30.1]} 24... h5 {[%clk
0:02:10.1]} 25. Kf2 {[%clk 0:00:57.5]} 25... h4 {[%clk 0:02:08.6]} 26. Bf1
{[%clk 0:00:55.9]} 26... d5 {[%clk 0:01:52.8]} 27. cxd5 {[%clk 0:00:49.6]} 27...
exd5 {[%clk 0:01:50.9]} 28. Nf5 {[%clk 0:00:39.4]} 28... Qe6 {[%clk 0:01:49]}
29. Rxc8 {[%clk 0:00:22]} 29... Rxc8 {[%clk 0:01:43.1]} 30. Nc3 {[%clk
0:00:20.1]} 30... Neg4+ {[%clk 0:01:25.3]} 31. fxg4 {[%clk 0:00:18.4]} 31...
Rxc3 {[%clk 0:01:24.8]} 32. Qb1 {[%clk 0:00:05.2]} 32... Nxg4+ {[%clk
0:01:14.3]} 33. Kg1 {[%clk 0:00:05.1]} 33... dxe4 {[%clk 0:01:08.3]} 34. Rd8+
{[%clk 0:00:04]} 34... Kh7 {[%clk 0:01:07.8]} 35. Nxh4 {[%clk 0:00:02.1]} 35...
Qf6 {[%clk 0:01:04.8]} 36. Rd7 {[%clk 0:00:01.3]} 0-1

[Event "*** SCC Grand Prix: Titled Tuesday Blitz"]
[Site "Chess.com"]
[Date "2020.08.04"]
[Round "1"]
[White "penguingm1"]
[Black "Vladislav_Chizhikov"]
[Result "1-0"]
[WhiteElo "2955"]
[BlackElo "2459"]
[TimeControl "180+1"]
[EndTime "13:51:48 PDT"]
[Termination "penguingm1 won by resignation"]

1. d4 {[%clk 0:02:57.8]} 1... d5 {[%clk 0:02:57.7]} 2. Bf4 {[%clk 0:02:57.8]}
2... c6 {[%clk 0:02:57.2]} 3. e3 {[%clk 0:02:58.1]} 3... Bf5 {[%clk 0:02:57.5]}
4. c4 {[%clk 0:02:58.4]} 4... Qb6 {[%clk 0:02:57.6]} 5. Qb3 {[%clk 0:02:58.4]}
5... e6 {[%clk 0:02:57.1]} 6. Nc3 {[%clk 0:02:55.4]} 6... dxc4 {[%clk
0:02:56.3]} 7. Bxc4 {[%clk 0:02:54.5]} 7... Nd7 {[%clk 0:02:55.4]} 8. f3 {[%clk
0:02:54.1]} 8... Bg6 {[%clk 0:02:54.5]} 9. Nge2 {[%clk 0:02:53.5]} 9... Ngf6
{[%clk 0:02:53.9]} 10. e4 {[%clk 0:02:50.2]} 10... Qxb3 {[%clk 0:02:53.1]} 11.
Bxb3 {[%clk 0:02:50.3]} 11... Be7 {[%clk 0:02:52.6]} 12. O-O {[%clk 0:02:50]}
12... O-O {[%clk 0:02:52.1]} 13. Rfd1 {[%clk 0:02:50.7]} 13... a5 {[%clk
0:02:47.9]} 14. Rac1 {[%clk 0:02:49.7]} 14... Rfc8 {[%clk 0:02:46.5]} 15. a3
{[%clk 0:02:47.7]} 15... Kf8 {[%clk 0:02:39.2]} 16. g4 {[%clk 0:02:44.7]} 16...
h6 {[%clk 0:02:38.1]} 17. Kf2 {[%clk 0:02:44.1]} 17... Ne8 {[%clk 0:02:36.5]}
18. Be3 {[%clk 0:02:39.7]} 18... Bd6 {[%clk 0:02:31.1]} 19. f4 {[%clk
0:02:39.2]} 19... Bh7 {[%clk 0:02:28]} 20. Kf3 {[%clk 0:02:33.4]} 20... Be7
{[%clk 0:02:27.3]} 21. f5 {[%clk 0:02:24.8]} 21... exf5 {[%clk 0:02:24.9]} 22.
gxf5 {[%clk 0:02:24.9]} 22... f6 {[%clk 0:02:20]} 23. Nf4 {[%clk 0:02:24.4]}
23... Nc7 {[%clk 0:02:07.3]} 24. Rg1 {[%clk 0:02:24]} 24... c5 {[%clk
0:01:58.4]} 25. Ne6+ {[%clk 0:02:01.6]} 25... Nxe6 {[%clk 0:01:56.6]} 26. fxe6
{[%clk 0:02:02.5]} 26... Nb6 {[%clk 0:01:48.5]} 27. dxc5 {[%clk 0:01:56.9]}
27... Rxc5 {[%clk 0:01:40.3]} 28. Bxc5 {[%clk 0:01:54.6]} 28... Bxc5 {[%clk
0:01:41.2]} 29. Nd5 {[%clk 0:01:43.3]} 29... Bxg1 {[%clk 0:01:37.9]} 30. e7+
{[%clk 0:01:43.2]} 30... Ke8 {[%clk 0:01:35.8]} 31. Nc7+ {[%clk 0:01:43.4]}
31... Kxe7 {[%clk 0:01:33.7]} 32. Nxa8 {[%clk 0:01:43.7]} 32... Nxa8 {[%clk
0:01:28.6]} 33. Rxg1 {[%clk 0:01:44]} 33... g5 {[%clk 0:01:29]} 34. Rc1 {[%clk
0:01:43.9]} 34... Kd8 {[%clk 0:01:23]} 35. Be6 {[%clk 0:01:40.6]} 35... Nc7
{[%clk 0:01:21.4]} 36. Rd1+ {[%clk 0:01:40.9]} 36... Ke8 {[%clk 0:01:10]} 37.
Bf5 {[%clk 0:01:33.5]} 37... Bg8 {[%clk 0:01:09.1]} 38. Rd7 {[%clk 0:01:32.9]}
38... Ne6 {[%clk 0:01:07.5]} 39. Rxb7 {[%clk 0:01:31.9]} 39... Nd4+ {[%clk
0:01:04.5]} 40. Kg4 {[%clk 0:01:30.8]} 40... Bf7 {[%clk 0:01:02.3]} 41. Ra7
{[%clk 0:01:25.8]} 41... h5+ {[%clk 0:01:01.3]} 42. Kg3 {[%clk 0:01:25.6]} 42...
Ne2+ {[%clk 0:00:55.3]} 43. Kf2 {[%clk 0:01:25]} 43... Nc1 {[%clk 0:00:55.4]}
44. e5 {[%clk 0:01:11.4]} 44... fxe5 {[%clk 0:00:54.1]} 45. Rxa5 {[%clk
0:01:10.6]} 45... Ke7 {[%clk 0:00:52.6]} 46. Rxe5+ {[%clk 0:01:01.9]} 46... Kf6
{[%clk 0:00:52.4]} 47. Rb5 {[%clk 0:00:53.8]} 47... Nb3 {[%clk 0:00:48.4]} 48.
Bd3 {[%clk 0:00:51]} 48... Nd4 {[%clk 0:00:48]} 49. Rc5 {[%clk 0:00:47.7]} 49...
h4 {[%clk 0:00:43.7]} 50. a4 {[%clk 0:00:47.3]} 50... Nb3 {[%clk 0:00:41.8]} 51.
Rf5+ {[%clk 0:00:46.8]} 51... Ke7 {[%clk 0:00:37.1]} 52. Rxf7+ {[%clk 0:00:47]}
1-0

[Event "*** SCC Grand Prix: Titled Tuesday Blitz"]
[Site "Chess.com"]
[Date "2020.08.04"]
[Round "1"]
[White "superchess02"]
[Black "ChadBiryani"]
[Result "1-0"]
[WhiteElo "2709"]
[BlackElo "2343"]
[TimeControl "180+1"]
[EndTime "13:51:50 PDT"]
[Termination "superchess02 won by resignation"]

1. e4 {[%clk 0:03:00.9]} 1... c5 {[%clk 0:02:57.8]} 2. Nf3 {[%clk 0:02:51.9]}
2... d6 {[%clk 0:02:58.1]} 3. d4 {[%clk 0:02:52.4]} 3... cxd4 {[%clk 0:02:59]}
4. Nxd4 {[%clk 0:02:53.3]} 4... Nf6 {[%clk 0:02:59.7]} 5. Nc3 {[%clk 0:02:53.9]}
5... g6 {[%clk 0:03:00.4]} 6. Be3 {[%clk 0:02:53]} 6... Bg7 {[%clk 0:03:00.1]}
7. f3 {[%clk 0:02:53.6]} 7... a6 {[%clk 0:03:00.1]} 8. Qd2 {[%clk 0:02:54]} 8...
h5 {[%clk 0:03:00.8]} 9. O-O-O {[%clk 0:02:54.5]} 9... b5 {[%clk 0:03:01.1]} 10.
Kb1 {[%clk 0:02:49.7]} 10... Bb7 {[%clk 0:03:01.3]} 11. e5 {[%clk 0:02:45.3]}
11... dxe5 {[%clk 0:02:47.5]} 12. Ne6 {[%clk 0:02:28.8]} 12... Qxd2 {[%clk
0:02:47.1]} 13. Nxg7+ {[%clk 0:02:29]} 13... Kf8 {[%clk 0:02:47.7]} 14. Rxd2
{[%clk 0:02:28.9]} 14... Kxg7 {[%clk 0:02:48.3]} 15. Be2 {[%clk 0:02:28]} 15...
Nc6 {[%clk 0:02:43.4]} 16. Rhd1 {[%clk 0:02:28.5]} 16... Rhd8 {[%clk 0:02:43]}
17. a4 {[%clk 0:02:28.5]} 17... b4 {[%clk 0:02:33.6]} 18. Na2 {[%clk 0:02:28.6]}
18... Rxd2 {[%clk 0:01:53.9]} 19. Rxd2 {[%clk 0:02:29.5]} 19... e6 {[%clk
0:01:42.7]} 20. Bc5 {[%clk 0:02:20.1]} 20... a5 {[%clk 0:01:33.4]} 21. Nc1
{[%clk 0:02:20.1]} 21... Nd5 {[%clk 0:01:29.8]} 22. Nb3 {[%clk 0:02:19.9]} 22...
f5 {[%clk 0:01:21]} 23. Bf2 {[%clk 0:02:17.8]} 23... Kf6 {[%clk 0:01:11.2]} 24.
Nc5 {[%clk 0:02:17.6]} 24... Bc8 {[%clk 0:00:53.3]} 25. Bc4 {[%clk 0:02:17.4]}
25... Nce7 {[%clk 0:00:48.1]} 26. Bg3 {[%clk 0:02:17.1]} 26... Ra7 {[%clk
0:00:33.7]} 27. Re2 {[%clk 0:02:15.5]} 27... f4 {[%clk 0:00:32.1]} 28. Bh4+
{[%clk 0:02:11]} 28... g5 {[%clk 0:00:30.8]} 29. Ne4+ {[%clk 0:02:10.4]} 29...
Kg6 {[%clk 0:00:26.3]} 30. Bxg5 {[%clk 0:02:07]} 30... Nf5 {[%clk 0:00:21.3]}
31. h4 {[%clk 0:01:58.4]} 31... Nfe3 {[%clk 0:00:20.4]} 32. Bd3 {[%clk 0:01:51]}
32... Kg7 {[%clk 0:00:13.9]} 33. g3 {[%clk 0:01:48.7]} 33... Bd7 {[%clk
0:00:13.3]} 34. gxf4 {[%clk 0:01:48.9]} 34... exf4 {[%clk 0:00:11.9]} 35. Bxf4
{[%clk 0:01:41.7]} 35... Nxf4 {[%clk 0:00:12]} 36. Rxe3 {[%clk 0:01:42.2]} 36...
Bxa4 {[%clk 0:00:08]} 37. Nc5 {[%clk 0:01:41.2]} 37... Nxd3 {[%clk 0:00:06.5]}
38. Rxd3 {[%clk 0:01:38.1]} 38... Bc6 {[%clk 0:00:06.9]} 39. Nxe6+ {[%clk
0:01:37.8]} 39... Kf6 {[%clk 0:00:07.3]} 40. Ng5 {[%clk 0:01:36.5]} 40... Kf5
{[%clk 0:00:03.2]} 41. Rd4 {[%clk 0:01:36.1]} 41... Re7 {[%clk 0:00:02.6]} 42.
b3 {[%clk 0:01:34.9]} 42... Re1+ {[%clk 0:00:03.3]} 43. Kb2 {[%clk 0:01:35.2]}
43... Ke5 {[%clk 0:00:03.8]} 44. Rc4 {[%clk 0:01:34.9]} 44... Bd5 {[%clk
0:00:04.1]} 45. Rc5 {[%clk 0:01:35.1]} 45... Rh1 {[%clk 0:00:04.8]} 46. f4+
{[%clk 0:01:31.8]} 46... Kd4 {[%clk 0:00:04.3]} 47. Rxa5 {[%clk 0:01:29.4]}
47... Rxh4 {[%clk 0:00:04.9]} 48. Rb5 {[%clk 0:01:27.7]} 48... Rxf4 {[%clk
0:00:02.6]} 49. Rxb4+ {[%clk 0:01:28]} 49... Ke3 {[%clk 0:00:03.4]} 50. Rb5
{[%clk 0:01:27.7]} 50... Be4 {[%clk 0:00:02.7]} 51. Nxe4 {[%clk 0:01:25.3]}
51... Rxe4 {[%clk 0:00:02.9]} 52. Rxh5 {[%clk 0:01:25.9]} 1-0

[Event "*** SCC Grand Prix: Titled Tuesday Blitz"]
[Site "Chess.com"]
[Date "2020.08.04"]
[Round "1"]
[White "Beca95"]
[Black "RaphCamora"]
[Result "1-0"]
[WhiteElo "2880"]
[BlackElo "2435"]
[TimeControl "180+1"]
[EndTime "13:51:53 PDT"]
[Termination "Beca95 won by resignation"]

1. c4 {[%clk 0:02:49.2]} 1... e6 {[%clk 0:02:57.7]} 2. Nc3 {[%clk 0:02:41.6]}
2... d5 {[%clk 0:02:57.1]} 3. e3 {[%clk 0:02:40.3]} 3... Nf6 {[%clk 0:02:56.1]}
4. Nf3 {[%clk 0:02:40.2]} 4... c5 {[%clk 0:02:55.6]} 5. cxd5 {[%clk 0:02:39.8]}
5... exd5 {[%clk 0:02:55.5]} 6. Bb5+ {[%clk 0:02:38]} 6... Bd7 {[%clk
0:02:54.7]} 7. Bxd7+ {[%clk 0:02:38]} 7... Nbxd7 {[%clk 0:02:55.2]} 8. d4 {[%clk
0:02:38.6]} 8... c4 {[%clk 0:02:53.8]} 9. O-O {[%clk 0:02:37]} 9... Bb4 {[%clk
0:02:52.2]} 10. Bd2 {[%clk 0:02:37.3]} 10... O-O {[%clk 0:02:50.2]} 11. b3
{[%clk 0:02:36]} 11... Rc8 {[%clk 0:02:48.6]} 12. bxc4 {[%clk 0:02:35.4]} 12...
Rxc4 {[%clk 0:02:46.3]} 13. Qb3 {[%clk 0:02:34.8]} 13... Qa5 {[%clk 0:02:43.2]}
14. Nxd5 {[%clk 0:02:32.6]} 14... Qxd5 {[%clk 0:02:21.7]} 15. Bxb4 {[%clk
0:02:26.6]} 15... Rfc8 {[%clk 0:02:20.4]} 16. Bd2 {[%clk 0:01:58.9]} 16... b5
{[%clk 0:02:13.1]} 17. a4 {[%clk 0:01:55.7]} 17... Rxa4 {[%clk 0:02:09.5]} 18.
Qxd5 {[%clk 0:01:52.8]} 18... Nxd5 {[%clk 0:02:10.4]} 19. Rxa4 {[%clk
0:01:52.8]} 19... bxa4 {[%clk 0:02:11.3]} 20. Ra1 {[%clk 0:01:52.8]} 20... N5b6
{[%clk 0:02:04.4]} 21. Kf1 {[%clk 0:01:50.7]} 21... Nf6 {[%clk 0:01:58.4]} 22.
Ke2 {[%clk 0:01:48]} 22... Ne4 {[%clk 0:01:58.3]} 23. Be1 {[%clk 0:01:41.4]}
23... f6 {[%clk 0:01:56.8]} 24. Kd3 {[%clk 0:01:41.2]} 24... f5 {[%clk
0:01:27.4]} 25. Ne5 {[%clk 0:01:34.9]} 25... Nd6 {[%clk 0:00:51.8]} 26. f3
{[%clk 0:01:12.7]} 26... Ndc4 {[%clk 0:00:45.8]} 27. Nxc4 {[%clk 0:01:10.6]}
27... Nxc4 {[%clk 0:00:46.7]} 28. Ra2 {[%clk 0:01:06.8]} 28... a3 {[%clk
0:00:34.1]} 29. d5 {[%clk 0:01:00.1]} 29... a5 {[%clk 0:00:33.7]} 30. e4 {[%clk
0:00:52.5]} 30... fxe4+ {[%clk 0:00:33.2]} 31. fxe4 {[%clk 0:00:53.4]} 31... Kf7
{[%clk 0:00:33.8]} 32. Bc3 {[%clk 0:00:49.9]} 32... g6 {[%clk 0:00:22.6]} 33.
Bd4 {[%clk 0:00:49.7]} 33... Ke7 {[%clk 0:00:20.2]} 34. e5 {[%clk 0:00:49.5]}
34... Kd7 {[%clk 0:00:19.5]} 35. Rc2 {[%clk 0:00:43]} 35... Nb2+ {[%clk
0:00:07.8]} 36. Bxb2 {[%clk 0:00:41.1]} 36... axb2 {[%clk 0:00:08.7]} 37. Rxb2
{[%clk 0:00:40.5]} 37... Rc5 {[%clk 0:00:09.6]} 38. Kd4 {[%clk 0:00:39.9]} 38...
Rc1 {[%clk 0:00:09.3]} 39. Rb7+ {[%clk 0:00:38.9]} 1-0

[Event "*** SCC Grand Prix: Titled Tuesday Blitz"]
[Site "Chess.com"]
[Date "2020.08.04"]
[Round "1"]
[White "chessvr"]
[Black "Machidon"]
[Result "0-1"]
[WhiteElo "2099"]
[BlackElo "2513"]
[TimeControl "180+1"]
[EndTime "13:52:03 PDT"]
[Termination "Machidon won by checkmate"]

1. e4 {[%clk 0:02:56.3]} 1... c6 {[%clk 0:02:59.1]} 2. d4 {[%clk 0:02:54.3]}
2... d5 {[%clk 0:03:00]} 3. exd5 {[%clk 0:02:53.6]} 3... cxd5 {[%clk 0:03:00.9]}
4. c4 {[%clk 0:02:50.5]} 4... Nf6 {[%clk 0:03:01]} 5. Nc3 {[%clk 0:02:45]} 5...
e6 {[%clk 0:03:00.6]} 6. Nf3 {[%clk 0:02:43.6]} 6... Be7 {[%clk 0:03:01]} 7. Bd3
{[%clk 0:02:42.8]} 7... O-O {[%clk 0:03:01.5]} 8. O-O {[%clk 0:02:41.5]} 8...
dxc4 {[%clk 0:03:02.4]} 9. Bxc4 {[%clk 0:02:41.1]} 9... Nc6 {[%clk 0:03:03.3]}
10. Bg5 {[%clk 0:02:37.6]} 10... b6 {[%clk 0:03:03.4]} 11. a3 {[%clk 0:02:32.7]}
11... Bb7 {[%clk 0:03:03.5]} 12. Ba2 {[%clk 0:02:27]} 12... Rc8 {[%clk
0:03:01.8]} 13. Qd2 {[%clk 0:02:26.7]} 13... Na5 {[%clk 0:02:36.9]} 14. Rad1
{[%clk 0:02:22.8]} 14... Bxf3 {[%clk 0:02:35.5]} 15. gxf3 {[%clk 0:02:21.8]}
15... Nd5 {[%clk 0:02:36]} 16. Bxe7 {[%clk 0:02:07.4]} 16... Nxe7 {[%clk
0:02:36.9]} 17. Qe2 {[%clk 0:02:06.1]} 17... Ng6 {[%clk 0:02:31.8]} 18. Qe4
{[%clk 0:02:03.8]} 18... Qf6 {[%clk 0:02:10.6]} 19. Kh1 {[%clk 0:01:57.4]} 19...
Nc4 {[%clk 0:02:06.9]} 20. Bxc4 {[%clk 0:01:05.3]} 20... Rxc4 {[%clk 0:02:07.8]}
21. Qd3 {[%clk 0:01:05.1]} 21... Rfc8 {[%clk 0:02:03.8]} 22. Ne4 {[%clk
0:01:05.3]} 22... Qh4 {[%clk 0:02:02]} 23. d5 {[%clk 0:00:55.9]} 23... Nf4
{[%clk 0:01:57.5]} 24. Qd2 {[%clk 0:00:43.2]} 24... Nxd5 {[%clk 0:01:45.4]} 25.
Nd6 {[%clk 0:00:41.3]} 25... Rc2 {[%clk 0:01:45.3]} 26. Qd4 {[%clk 0:00:24.5]}
26... Qxd4 {[%clk 0:01:39.7]} 27. Rxd4 {[%clk 0:00:24.5]} 27... R8c6 {[%clk
0:01:39.1]} 28. Ne4 {[%clk 0:00:20.9]} 28... Rxb2 {[%clk 0:01:37.8]} 29. f4
{[%clk 0:00:21.2]} 29... g6 {[%clk 0:01:34.9]} 30. f5 {[%clk 0:00:21]} 30...
gxf5 {[%clk 0:01:35.1]} 31. Rg1+ {[%clk 0:00:20.6]} 31... Kf8 {[%clk 0:01:35.1]}
32. Ng5 {[%clk 0:00:20.5]} 32... h6 {[%clk 0:01:33.7]} 33. Nh7+ {[%clk
0:00:20.5]} 33... Ke7 {[%clk 0:01:34]} 34. Rh4 {[%clk 0:00:19.3]} 34... Rxf2
{[%clk 0:01:33.4]} 35. Rxh6 {[%clk 0:00:19.9]} 35... Rcc2 {[%clk 0:01:33.9]} 36.
Ng5 {[%clk 0:00:18.8]} 36... Ne3 {[%clk 0:01:29.1]} 37. Rh7 {[%clk 0:00:18]}
37... Ng4 {[%clk 0:01:29.3]} 38. Re1 {[%clk 0:00:13.6]} 38... Rxh2+ {[%clk
0:01:27.5]} 39. Rxh2 {[%clk 0:00:11.6]} 39... Rxh2+ {[%clk 0:01:28.4]} 40. Kg1
{[%clk 0:00:12.2]} 40... Ra2 {[%clk 0:01:28.7]} 41. Nf3 {[%clk 0:00:11.5]} 41...
Rxa3 {[%clk 0:01:28.1]} 42. Nd4 {[%clk 0:00:11.4]} 42... Kf6 {[%clk 0:01:28.2]}
43. Nc6 {[%clk 0:00:11.2]} 43... Ne5 {[%clk 0:01:27.8]} 44. Nxe5 {[%clk
0:00:10.7]} 44... b5 {[%clk 0:01:26.8]} 45. Nd7+ {[%clk 0:00:10.4]} 45... Ke7
{[%clk 0:01:26.7]} 46. Nc5 {[%clk 0:00:09.8]} 46... b4 {[%clk 0:01:26.6]} 47.
Rb1 {[%clk 0:00:09]} 47... a5 {[%clk 0:01:26.8]} 48. Nb3 {[%clk 0:00:06.2]}
48... a4 {[%clk 0:01:26]} 49. Nd4 {[%clk 0:00:06.8]} 49... b3 {[%clk 0:01:26.1]}
50. Nc6+ {[%clk 0:00:07.1]} 50... Kd6 {[%clk 0:01:25.7]} 51. Nb4 {[%clk
0:00:07.1]} 51... Kc5 {[%clk 0:01:24.9]} 52. Nd3+ {[%clk 0:00:06.6]} 52... Kd4
{[%clk 0:01:25.4]} 53. Nf4 {[%clk 0:00:05.1]} 53... Ra2 {[%clk 0:01:23]} 54.
Ne2+ {[%clk 0:00:02.1]} 54... Rxe2 {[%clk 0:01:22.6]} 55. Rd1+ {[%clk
0:00:02.3]} 55... Kc3 {[%clk 0:01:22.8]} 56. Rc1+ {[%clk 0:00:02.6]} 56... Rc2
{[%clk 0:01:22.8]} 57. Rb1 {[%clk 0:00:03.2]} 57... b2 {[%clk 0:01:23.2]} 58.
Ra1 {[%clk 0:00:03.7]} 58... bxa1=Q# {[%clk 0:01:23]} 0-1

[Event "*** SCC Grand Prix: Titled Tuesday Blitz"]
[Site "Chess.com"]
[Date "2020.08.04"]
[Round "1"]
[White "Joshukid"]
[Black "Fischerev7"]
[Result "1-0"]
[WhiteElo "2722"]
[BlackElo "2359"]
[TimeControl "180+1"]
[EndTime "13:52:05 PDT"]
[Termination "Joshukid won by resignation"]

1. e4 {[%clk 0:02:55.7]} 1... c5 {[%clk 0:03:00]} 2. Nf3 {[%clk 0:02:56.1]} 2...
d6 {[%clk 0:02:58.4]} 3. Bb5+ {[%clk 0:02:51.5]} 3... Nd7 {[%clk 0:02:57.4]} 4.
a4 {[%clk 0:02:48.5]} 4... a6 {[%clk 0:02:57.1]} 5. Be2 {[%clk 0:02:45.3]} 5...
Ngf6 {[%clk 0:02:55.9]} 6. Nc3 {[%clk 0:02:44.3]} 6... g6 {[%clk 0:02:55.7]} 7.
O-O {[%clk 0:02:42]} 7... Bg7 {[%clk 0:02:55.5]} 8. a5 {[%clk 0:02:42.4]} 8...
O-O {[%clk 0:02:54.6]} 9. d4 {[%clk 0:02:41.2]} 9... cxd4 {[%clk 0:02:43.9]} 10.
Nxd4 {[%clk 0:02:42.1]} 10... Nc5 {[%clk 0:02:38.7]} 11. f3 {[%clk 0:02:38.7]}
11... Ne6 {[%clk 0:02:33.3]} 12. Be3 {[%clk 0:02:36.1]} 12... Bd7 {[%clk
0:02:29.4]} 13. Nxe6 {[%clk 0:02:29.8]} 13... Bxe6 {[%clk 0:02:30.3]} 14. Na4
{[%clk 0:02:30.1]} 14... Nd7 {[%clk 0:02:11.7]} 15. c3 {[%clk 0:02:29.2]} 15...
Rc8 {[%clk 0:01:59.4]} 16. Qd2 {[%clk 0:02:26.2]} 16... Qc7 {[%clk 0:01:42.9]}
17. h4 {[%clk 0:02:18.4]} 17... h5 {[%clk 0:01:27.7]} 18. Nb6 {[%clk 0:02:09]}
18... Nxb6 {[%clk 0:01:23.3]} 19. Bxb6 {[%clk 0:02:06.4]} 19... Qc6 {[%clk
0:01:21.6]} 20. Rac1 {[%clk 0:01:50.7]} 20... d5 {[%clk 0:01:14.4]} 21. exd5
{[%clk 0:01:45.7]} 21... Bxd5 {[%clk 0:01:12.5]} 22. c4 {[%clk 0:01:41.5]} 22...
Be6 {[%clk 0:01:10.8]} 23. b4 {[%clk 0:01:37.2]} 23... Kh7 {[%clk 0:01:00.5]}
24. Rfd1 {[%clk 0:01:33.8]} 24... Bh6 {[%clk 0:00:52.7]} 25. f4 {[%clk 0:01:29]}
25... Bg4 {[%clk 0:00:32.5]} 26. Bxg4 {[%clk 0:01:23.8]} 26... hxg4 {[%clk
0:00:33.4]} 27. g3 {[%clk 0:01:15.1]} 27... e5 {[%clk 0:00:20.1]} 28. Qd3 {[%clk
0:00:39.5]} 28... exf4 {[%clk 0:00:18.8]} 29. b5 {[%clk 0:00:40.2]} 29... Qf6
{[%clk 0:00:15.7]} 30. bxa6 {[%clk 0:00:36.7]} 30... bxa6 {[%clk 0:00:15.2]} 31.
c5 {[%clk 0:00:35]} 31... fxg3 {[%clk 0:00:15.3]} 32. Rc2 {[%clk 0:00:35.4]}
32... Qxh4 {[%clk 0:00:13.3]} 33. c6 {[%clk 0:00:34.8]} 33... Rce8 {[%clk
0:00:12.7]} 34. c7 {[%clk 0:00:33.3]} 34... Re3 {[%clk 0:00:12.4]} 35. Bxe3
{[%clk 0:00:32.2]} 35... Bxe3+ {[%clk 0:00:09.5]} 36. Qxe3 {[%clk 0:00:32.5]}
1-0